bitfinex/quotes_SOLUSD_20250805
["timestamp","ask_amount","ask_price","bid_price","bid_amount"]
[1754387122348,9.39260282,169.2,169.17,10.08089932]
[1754387122593,9.39260282,169.2,169.18,47.71086416]
[1754387122792,9.39260282,169.2,169.18,58.50176348]
[1754387123158,9.39260282,169.2,169.18,48.42086416]
[1754387124282,9.39260282,169.2,169.19,0.71]
[1754387124465,9.39260282,169.2,169.18,47.71084267]
[1754387124666,9.39260282,169.2,169.18,41.8]
[1754387124865,9.39260282,169.2,169.19,10.79089932]
[1754387126092,9.39260282,169.2,169.19,98.29089932]
[1754387126654,9.39260282,169.2,169.19,104.20141412]
[1754387132099,9.39260282,169.2,169.19,94.1205148]
[1754387132303,9.39260282,169.2,169.19,241.7005148]
[1754387132598,9.39260282,169.2,169.19,16.68141412]
[1754387132900,9.39260282,169.2,169.19,12.88874709]
[1754387135973,9.39260282,169.2,169.19,28.13712423]
[1754387137197,1e-08,169.2,169.19,28.13712423]
[1754387138507,1e-08,169.2,169.19,21.84889194]
[1754387138803,1e-08,169.2,169.19,28.13712423]
[1754387142009,1e-08,169.22,169.21,26.0]
[1754387142316,1e-08,169.22,169.21,89.25660943]
[1754387142514,1e-08,169.22,169.21,177.44660943]
[1754387142809,1e-08,169.22,169.21,183.35642563]
[1754387145298,1e-08,169.22,169.21,183.21426406]
[1754387146497,1e-08,169.22,169.21,183.35642563]
[1754387148391,0.69,169.29,169.22,0.14216157]
[1754387148597,0.69,169.29,169.28,6.28823229]
[1754387148910,5.90472455,169.36,169.28,6.28823229]
[1754387148911,0.69,169.31,169.29,5.90702345]
[1754387149119,0.69,169.31,169.3,47.98823229]
[1754387149339,26.0,169.41,169.3,47.98823229]
[1754387149340,0.69,169.35,169.3,48.67823229]
[1754387149492,6.28823229,169.39,169.34,6.28823229]
[1754387149695,5.90330533,169.4,169.35,41.7]
[1754387149696,6.28823229,169.4,169.35,41.7]
[1754387149909,6.28823229,169.4,169.36,41.72]
[1754387150108,0.69,169.39,169.36,41.72]
[1754387150297,10.86698794,169.44,169.36,48.00823229]
[1754387150298,6.28823229,169.42,169.36,48.00823229]
[1754387150614,0.69,169.41,169.37,6.28823229]
[1754387150840,0.69,169.41,169.38,41.72]
[1754387151018,0.69,169.41,169.38,47.62378218]
[1754387151231,10.86698794,169.44,169.38,53.91201447]
[1754387151413,0.69,169.42,169.4,6.28823229]
[1754387151601,0.69,169.42,169.41,41.72]
[1754387152419,11.55698794,169.44,169.41,41.72]
[1754387152633,10.86698794,169.44,169.41,41.72]
[1754387152925,0.69,169.43,169.41,47.62271476]
[1754387153295,10.86698794,169.44,169.41,47.62271476]
[1754387153628,10.86698794,169.44,169.41,54.60094705]
[1754387153798,10.86698794,169.44,169.41,47.62271476]
[1754387154002,0.69,169.43,169.41,47.62271476]
[1754387155397,10.86698794,169.44,169.41,53.91094705]
[1754387155615,11.55698794,169.44,169.41,53.91094705]
[1754387155811,10.86698794,169.44,169.41,54.60094705]
[1754387156229,11.55698794,169.44,169.41,53.91094705]
[1754387156600,11.55698794,169.44,169.41,47.62271476]
[1754387156802,11.55698794,169.44,169.41,53.91094705]
[1754387157110,11.55698794,169.44,169.41,47.62271476]
[1754387158432,6.28823229,169.42,169.35,15.45168413]
[1754387158637,6.28823229,169.4,169.36,47.54458195]
[1754387158803,0.67,169.39,169.36,47.54458195]
[1754387158997,6.28823229,169.4,169.36,47.54458195]
[1754387159202,0.67,169.38,169.36,47.54458195]
[1754387159643,0.67,169.41,169.37,6.95823229]
[1754387159801,0.67,169.43,169.39,6.28823229]
[1754387160110,0.67,169.43,169.4,41.66]
[1754387160316,6.28823229,169.41,169.33,6.28823229]
[1754387160548,6.28823229,169.35,169.34,41.66]
[1754387160831,0.67,169.35,169.34,41.66]
[1754387161303,6.95823229,169.37,169.34,41.66]
[1754387161506,6.28823229,169.4,169.35,12.1931629]
[1754387161732,6.95823229,169.39,169.36,41.74]
[1754387161944,6.28823229,169.37,169.36,41.74]
[1754387162142,6.95823229,169.37,169.36,41.74]
[1754387164513,6.95823229,169.37,169.31,5.90624778]
[1754387164723,6.28823229,169.34,169.32,41.74]
[1754387164929,0.67,169.34,169.32,47.64564544]
[1754387166517,6.28823229,169.35,169.32,47.64564544]
[1754387166724,6.95823229,169.36,169.32,48.31564544]
[1754387168038,6.28823229,169.35,169.32,48.31564544]
[1754387169023,0.67,169.36,169.32,48.31564544]
[1754387169229,6.28823229,169.35,169.32,48.31564544]
[1754387170247,6.28823229,169.35,169.33,0.67]
[1754387170447,6.28823229,169.35,169.34,41.72]
[1754387171244,0.67,169.37,169.34,41.72]
[1754387171477,0.67,169.39,169.34,48.29509879]
[1754387171639,0.67,169.38,169.34,47.62509879]
[1754387172154,5.90319218,169.4,169.35,41.7]
[1754387172356,6.28823229,169.36,169.35,41.7]
[1754387172670,6.95823229,169.36,169.34,41.84]
[1754387172963,0.03,169.35,169.34,41.84]
[1754387173558,0.03,169.35,169.34,47.74527931]
[1754387173755,6.31823229,169.35,169.34,41.84]
[1754387173967,0.7,169.35,169.34,41.84]
[1754387174151,6.98823229,169.35,169.32,5.90586194]
[1754387174359,6.28823229,169.33,169.3,42.56]
[1754387174567,6.95823229,169.33,169.31,41.84]
[1754387174767,6.28823229,169.33,169.31,41.84]
[1754387175089,6.28823229,169.34,169.31,41.84]
[1754387175247,6.28823229,169.34,169.31,47.74606021]
[1754387175448,6.28823229,169.32,169.31,41.84]
[1754387175648,6.95823229,169.32,169.31,41.84]
[1754387176375,6.28823229,169.32,169.31,41.84]
[1754387176671,0.67,169.34,169.31,47.74623669]
[1754387177061,6.28823229,169.33,169.31,47.74623669]
[1754387177375,6.95823229,169.34,169.31,47.74623669]
[1754387177679,0.67,169.34,169.31,47.74623669]
[1754387177853,6.95823229,169.34,169.31,47.74623669]
[1754387178050,0.67,169.34,169.31,47.74623669]
[1754387178273,6.95823229,169.34,169.31,47.74623669]
[1754387178978,0.67,169.34,169.31,47.74623669]
[1754387179389,6.95823229,169.34,169.31,47.74623669]
[1754387179767,0.67,169.33,169.31,47.74623669]
[1754387180162,6.28823229,169.34,169.31,47.74623669]
[1754387180495,6.95823229,169.34,169.31,47.74623669]
[1754387181069,0.67,169.33,169.31,41.84]
[1754387181265,6.95823229,169.32,169.27,5.90772139]
[1754387181583,6.28823229,169.32,169.28,42.61]
[1754387181754,0.67,169.31,169.28,42.61]
[1754387182586,6.28823229,169.32,169.29,5.90702345]
[1754387182884,0.67,169.31,169.24,0.67]
[1754387183178,0.67,169.31,169.21,0.73]
[1754387183179,6.28823229,169.25,169.21,0.73]
[1754387183378,6.28823229,169.24,169.22,41.96]
[1754387183768,0.67,169.25,169.22,42.63]
[1754387183769,6.95823229,169.25,169.22,42.63]
[1754387184079,6.28823229,169.25,169.22,42.63]
[1754387184280,6.28823229,169.26,169.22,48.53934188]
[1754387184582,6.95823229,169.26,169.22,48.53934188]
[1754387184794,6.28823229,169.26,169.23,0.67]
[1754387185094,6.95823229,169.25,169.24,41.96]
[1754387185871,0.67,169.25,169.24,41.96]
[1754387186070,6.28823229,169.25,169.24,41.96]
[1754387186493,6.28823229,169.25,169.23,5.90903198]
[1754387186681,6.95823229,169.24,169.21,5.96969512]
[1754387186888,6.28823229,169.24,169.22,41.94]
[1754387187268,6.28823229,169.24,169.22,42.61]
[1754387187690,6.28823229,169.25,169.23,0.67]
[1754387187872,0.67,169.28,169.24,42.59]
[1754387188196,6.28823229,169.27,169.24,48.49867067]
[1754387190281,6.94823229,169.27,169.24,47.82867067]
[1754387190482,6.28823229,169.26,169.24,47.82867067]
[1754387191198,0.66,169.27,169.24,48.50867067]
[1754387191503,6.28823229,169.26,169.24,48.50867067]
[1754387191869,0.66,169.29,169.24,48.50867067]
[1754387192067,6.28823229,169.26,169.24,136.00867067]
[1754387192298,6.28823229,169.27,169.24,136.00867067]
[1754387193384,6.28823229,169.27,169.24,135.32867067]
[1754387193587,6.28823229,169.27,169.25,0.68]
[1754387193889,6.28823229,169.27,169.26,41.88]
[1754387195515,6.28823229,169.27,169.26,129.38]
[1754387195877,0.66,169.29,169.26,129.38]
[1754387196078,6.28823229,169.27,169.26,129.38]
[1754387197102,0.66,169.29,169.26,129.38]
[1754387197400,6.31823229,169.33,169.28,6.28823229]
[1754387197603,6.31823229,169.33,169.29,41.86]
[1754387197985,6.31823229,169.33,169.3,0.68]
[1754387198190,5.93566216,169.33,169.31,41.86]
[1754387198386,6.28823229,169.32,169.31,41.86]
[1754387198693,6.94823229,169.32,169.31,41.86]
[1754387200093,6.28823229,169.32,169.31,41.86]
[1754387200622,0.03,169.33,169.31,42.54]
[1754387200790,0.03,169.33,169.31,41.86]
[1754387200980,6.97823229,169.33,169.31,41.86]
[1754387201425,0.69,169.33,169.31,41.86]
[1754387201597,6.31823229,169.33,169.31,41.86]
[1754387202394,6.97823229,169.33,169.31,41.86]
[1754387203447,6.31823229,169.33,169.31,41.86]
[1754387203713,6.97823229,169.33,169.31,41.86]
[1754387204085,6.31823229,169.33,169.31,41.86]
[1754387205300,6.97823229,169.33,169.31,41.86]
[1754387205793,12.22386427,169.33,169.31,41.86]
[1754387206002,6.94823229,169.32,169.31,41.86]
[1754387207012,0.03,169.33,169.31,41.86]
[1754387207227,6.31823229,169.33,169.31,42.54]
[1754387208822,6.28823229,169.32,169.31,41.86]
[1754387210022,6.59575748,169.33,169.31,41.82]
[1754387210023,0.69,169.33,169.31,41.82]
[1754387210214,6.31823229,169.33,169.31,42.5]
[1754387210619,0.03,169.33,169.32,0.68]
[1754387211030,0.03,169.33,169.32,6.96823229]
[1754387211710,0.03,169.33,169.32,12.87420913]
[1754387220628,0.03,169.33,169.31,41.82]
[1754387220943,6.99823229,169.32,169.31,41.82]
[1754387221738,0.71,169.32,169.31,41.82]
[1754387222043,6.28823229,169.32,169.31,41.82]
[1754387222270,0.03,169.33,169.31,48.10823229]
[1754387222431,0.03,169.33,169.32,0.72]
[1754387222631,0.03,169.33,169.32,7.00823229]
[1754387222833,0.03,169.33,169.32,0.72]
[1754387223037,0.03,169.33,169.32,7.00823229]
[1754387223352,0.03,169.33,169.32,6.62597684]
[1754387223554,0.03,169.33,169.31,48.10823229]
[1754387223731,0.03,169.33,169.31,48.82823229]
[1754387224435,6.99823229,169.32,169.28,5.9073059]
[1754387224643,0.03,169.33,169.3,6.28823229]
[1754387224853,0.03,169.33,169.31,48.08823229]
[1754387225358,0.03,169.33,169.32,0.72]
[1754387225724,0.03,169.33,169.32,6.62597684]
[1754387225923,0.03,169.33,169.31,47.70628409]
[1754387226141,0.03,169.33,169.31,48.42628409]
[1754387226332,0.03,169.33,169.32,0.72]
[1754387227652,0.03,169.33,169.31,54.71451638]
[1754387227826,0.03,169.33,169.31,48.42628409]
[1754387228722,0.03,169.33,169.31,54.71451638]
[1754387229151,0.03,169.33,169.31,48.42628409]
[1754387229954,0.03,169.33,169.31,129.3]
[1754387230159,7.02823229,169.33,169.31,129.3]
[1754387230562,7.02823229,169.33,169.31,41.8]
[1754387230735,7.02823229,169.33,169.29,0.72]
[1754387230736,6.99823229,169.32,169.29,87.5]
[1754387230935,6.99823229,169.31,169.3,41.78]
[1754387231350,0.71,169.31,169.3,41.78]
[1754387231654,6.99823229,169.31,169.3,41.78]
[1754387231956,0.71,169.31,169.3,41.78]
[1754387232131,6.99823229,169.31,169.3,41.78]
[1754387234256,0.71,169.31,169.3,41.78]
[1754387234963,6.99823229,169.31,169.3,41.78]
[1754387235479,12.90455796,169.31,169.3,41.78]
[1754387236546,12.90455796,169.31,169.28,41.76]
[1754387236739,6.28823229,169.29,169.28,41.76]
[1754387237057,6.31823229,169.33,169.28,48.76823229]
[1754387237242,6.31823229,169.33,169.29,0.72]
[1754387237556,0.03,169.33,169.32,12.19420913]
[1754387237763,0.03,169.33,169.32,54.73420913]
[1754387238060,0.03,169.33,169.32,55.32480681]
[1754387240861,1e-08,169.35,169.34,0.14216157]
[1754387241158,0.71,169.45,169.35,15.10621557]
[1754387241364,0.71,169.45,169.41,6.28823229]
[1754387241548,0.71,169.45,169.42,41.82]
[1754387241748,11.57698794,169.44,169.42,41.82]
[1754387242149,10.86698794,169.44,169.42,41.82]
[1754387243051,10.86698794,169.44,169.42,47.72235357]
[1754387244971,10.86698794,169.44,169.42,48.44235357]
[1754387247379,10.86698794,169.44,169.42,47.72235357]
[1754387248477,0.71,169.43,169.38,0.72]
[1754387248661,6.94823229,169.42,169.39,41.76]
[1754387248863,6.94823229,169.41,169.4,41.78]
[1754387249166,6.28823229,169.41,169.4,41.78]
[1754387249361,6.28823229,169.42,169.4,41.78]
[1754387249770,0.66,169.42,169.4,41.78]
[1754387249969,6.28823229,169.43,169.4,47.68304049]
[1754387250164,6.28823229,169.43,169.4,48.37304049]
[1754387250765,17.81522023,169.44,169.4,48.37304049]
[1754387251081,10.86698794,169.44,169.41,0.69]
[1754387251283,10.86698794,169.44,169.42,41.78]
[1754387252784,11.52698794,169.44,169.42,41.78]
[1754387253568,11.52698794,169.44,169.42,47.68243327]
[1754387253774,10.86698794,169.44,169.42,47.68243327]
[1754387254390,17.15522023,169.44,169.42,41.78]
[1754387254694,0.66,169.43,169.42,129.28]
[1754387254990,17.15522023,169.44,169.42,129.28]
[1754387255282,17.81522023,169.44,169.43,41.74]
[1754387255791,11.52698794,169.44,169.43,41.74]
[1754387255960,10.86698794,169.44,169.43,41.74]
[1754387256687,17.15522023,169.44,169.43,41.74]
[1754387257280,10.86698794,169.44,169.43,41.74]
[1754387257485,17.15522023,169.44,169.43,41.74]
[1754387257788,10.86698794,169.44,169.43,41.74]
[1754387258993,11.52698794,169.44,169.43,41.74]
[1754387259291,10.86698794,169.44,169.43,41.74]
[1754387260780,10.86698794,169.44,169.43,129.24]
[1754387261887,10.86698794,169.44,169.43,135.83214247]
[1754387262273,10.89698794,169.44,169.43,135.83214247]
[1754387262971,10.89698794,169.44,169.43,142.12037476]
[1754387264001,10.89698794,169.44,169.43,135.83214247]
[1754387265387,10.89698794,169.44,169.43,142.12037476]
[1754387269084,10.89698794,169.44,169.43,135.83214247]
[1754387269310,10.89698794,169.44,169.43,142.02037476]
[1754387269477,6.94823229,169.49,169.44,76.60301206]
[1754387269676,6.94823229,169.49,169.45,41.64]
[1754387269907,0.66,169.48,169.45,41.64]
[1754387270647,6.28823229,169.49,169.46,0.69]
[1754387270812,0.66,169.49,169.47,41.64]
[1754387271012,0.1,169.5,169.47,41.64]
[1754387271226,0.66,169.48,169.47,41.64]
[1754387271442,6.94823229,169.48,169.47,41.64]
[1754387272213,6.94823229,169.48,169.44,83.19469724]
[1754387272440,0.66,169.47,169.45,41.62]
[1754387273145,6.94823229,169.48,169.46,41.6]
[1754387273641,6.28823229,169.48,169.46,41.6]
[1754387273821,6.94823229,169.48,169.46,41.6]
[1754387274020,0.66,169.48,169.46,41.6]
[1754387274240,6.94823229,169.48,169.46,41.6]
[1754387274945,6.28823229,169.49,169.46,42.29]
[1754387275243,0.76,169.5,169.44,82.89124435]
[1754387275244,0.66,169.47,169.44,82.50470622]
[1754387275426,0.66,169.47,169.45,41.58]
[1754387276744,0.66,169.46,169.4,6.97823229]
[1754387276922,0.66,169.46,169.41,42.27]
[1754387277121,0.66,169.48,169.42,6.97823229]
[1754387277351,6.94823229,169.48,169.43,42.27]
[1754387277519,6.94823229,169.48,169.43,48.55823229]
[1754387277842,6.94823229,169.47,169.43,41.58]
[1754387278047,6.94823229,169.47,169.43,42.27]
[1754387278352,0.66,169.46,169.43,48.17208982]
[1754387278648,0.66,169.46,169.43,47.48208982]
[1754387279242,6.28823229,169.47,169.43,48.20208982]
[1754387279438,0.72,169.46,169.43,41.58]
[1754387279643,0.1,169.5,169.44,0.72]
[1754387279644,6.62010219,169.49,169.44,0.72]
[1754387279828,0.72,169.48,169.45,41.58]
[1754387280028,7.00823229,169.48,169.45,42.3]
[1754387280231,6.28823229,169.49,169.45,41.58]
[1754387280530,6.38823229,169.5,169.46,0.72]
[1754387280737,0.72,169.49,169.47,41.6]
[1754387281446,0.72,169.48,169.47,41.6]
[1754387281751,7.00823229,169.48,169.47,41.6]
[1754387282131,6.28823229,169.48,169.47,41.6]
[1754387282861,6.28823229,169.48,169.47,41.58]
[1754387284352,6.31823229,169.48,169.47,41.58]
[1754387284935,0.03,169.48,169.47,41.58]
[1754387285472,7.03823229,169.48,169.41,0.72]
[1754387285673,6.28823229,169.44,169.38,6.28823229]
[1754387285962,6.28823229,169.43,169.39,42.32]
[1754387286169,6.28823229,169.43,169.4,0.72]
[1754387286341,0.75,169.48,169.41,41.6]
[1754387286539,6.28823229,169.46,169.42,0.72]
[1754387286850,6.28823229,169.46,169.43,0.72]
[1754387287034,6.28823229,169.45,169.44,41.6]
[1754387287236,7.00823229,169.45,169.44,41.6]
[1754387287747,7.00823229,169.45,169.39,0.72]
[1754387287973,6.28823229,169.42,169.4,41.6]
[1754387288452,6.28823229,169.42,169.4,42.32]
[1754387289054,6.28823229,169.43,169.4,42.32]
[1754387291752,6.28823229,169.41,169.4,41.6]
[1754387291954,7.00823229,169.41,169.4,41.6]
[1754387293256,7.00823229,169.41,169.35,0.06]
[1754387293257,12.91109557,169.41,169.35,0.78]
[1754387293564,6.28823229,169.41,169.37,41.56]
[1754387293879,6.28823229,169.42,169.38,0.72]
[1754387294049,6.28823229,169.42,169.39,0.72]
[1754387294237,6.28823229,169.41,169.4,41.6]
[1754387294644,12.91107155,169.41,169.4,41.6]
[1754387295272,12.91107155,169.41,169.35,0.78]
[1754387295476,6.28823229,169.38,169.36,41.62]
[1754387295978,6.28823229,169.37,169.36,41.62]
[1754387296186,7.00823229,169.37,169.36,41.62]
[1754387296388,0.72,169.39,169.36,41.62]
[1754387296549,0.03,169.48,169.39,5.90353621]
[1754387296746,0.03,169.48,169.4,48.64823229]
[1754387296966,0.03,169.48,169.44,6.28823229]
[1754387297167,0.03,169.48,169.45,41.66]
[1754387297374,0.03,169.48,169.45,42.38]
[1754387297580,0.03,169.48,169.45,41.66]
[1754387297762,0.72,169.47,169.45,41.66]
[1754387298166,6.31823229,169.48,169.45,41.66]
[1754387298367,7.03823229,169.48,169.45,41.66]
[1754387300579,6.31823229,169.48,169.45,48.28142306]
[1754387300778,0.03,169.48,169.46,0.72]
[1754387301101,0.03,169.48,169.45,47.56142306]
[1754387301287,0.03,169.48,169.45,48.28142306]
[1754387301478,0.03,169.48,169.46,0.72]
[1754387302061,0.03,169.48,169.47,0.72]
[1754387302477,0.03,169.48,169.45,48.28142306]
[1754387303091,0.72,169.47,169.45,41.66]
[1754387303272,7.00823229,169.47,169.45,41.66]
[1754387303583,0.03,169.48,169.4,0.72]
[1754387303584,7.00823229,169.46,169.4,0.72]
[1754387303758,6.28823229,169.43,169.41,41.66]
[1754387303960,7.00823229,169.42,169.41,41.66]
[1754387305200,6.28823229,169.42,169.41,41.66]
[1754387306584,6.28823229,169.42,169.41,41.72]
[1754387306895,12.91072314,169.42,169.41,41.72]
[1754387307098,12.91072314,169.42,169.41,0.06]
[1754387310403,5.902051,169.44,169.41,0.06]
[1754387310585,6.28823229,169.42,169.41,0.06]
[1754387310773,6.28823229,169.43,169.41,0.71]
[1754387310979,6.28823229,169.43,169.41,77.31301206]
[1754387311177,6.28823229,169.43,169.42,0.65]
[1754387311400,6.28823229,169.45,169.42,0.65]
[1754387311608,6.31823229,169.48,169.43,41.68]
[1754387311902,0.68,169.48,169.44,0.65]
[1754387312104,6.28823229,169.47,169.44,0.65]
[1754387312602,6.58041902,169.48,169.44,0.65]
[1754387312789,6.28823229,169.45,169.43,41.68]
[1754387312989,6.93823229,169.44,169.43,41.68]
[1754387313608,6.93823229,169.44,169.41,0.06]
[1754387313905,6.28823229,169.42,169.41,0.06]
[1754387314283,6.93823229,169.42,169.41,0.06]
[1754387314679,12.84072314,169.42,169.41,0.06]
[1754387315592,19.12895543,169.42,169.41,0.06]
[1754387315801,33.88518255,169.42,169.36,107.51329607]
[1754387316119,6.28823229,169.37,169.36,107.51329607]
[1754387317505,6.28823229,169.37,169.36,65.77329607]
[1754387317506,12.84246562,169.37,169.36,65.77329607]
[1754387319699,12.84246562,169.37,169.34,0.06]
[1754387319912,6.93823229,169.36,169.34,0.06]
[1754387321304,12.84281424,169.36,169.34,0.06]
[1754387323123,27.94902981,169.36,169.34,0.06]
[1754387323626,30.31442381,169.36,169.34,0.06]
[1754387326033,6.93823229,169.35,169.34,0.06]
[1754387326430,6.28823229,169.35,169.34,0.06]
[1754387326613,6.93823229,169.35,169.34,0.06]
[1754387327829,80.5631629,169.35,169.33,0.06]
[1754387328015,80.5631629,169.35,169.27,0.85]
[1754387328016,6.93823229,169.34,169.27,0.85]
[1754387328217,6.28823229,169.28,169.27,0.85]
[1754387328423,6.28823229,169.28,169.27,0.2]
[1754387328728,6.28823229,169.3,169.27,0.2]
[1754387329034,6.28823229,169.28,169.27,0.85]
[1754387329544,6.28823229,169.28,169.27,0.2]
[1754387329844,12.19560469,169.28,169.27,0.2]
[1754387330011,6.28823229,169.28,169.27,0.85]
[1754387331556,6.28823229,169.29,169.27,0.85]
[1754387331852,6.28823229,169.29,169.28,0.65]
[1754387333532,6.28823229,169.3,169.28,0.65]
[1754387334043,6.28823229,169.3,169.29,0.65]
[1754387336544,5.90620681,169.32,169.29,0.65]
[1754387336756,6.28823229,169.3,169.29,0.65]
[1754387338528,6.28823229,169.3,169.27,0.2]
[1754387338734,6.28823229,169.29,169.27,0.2]
[1754387338941,6.28823229,169.29,169.27,0.86]
[1754387339148,6.28823229,169.29,169.28,0.66]
[1754387340345,6.28823229,169.29,169.27,0.2]
[1754387340547,40.76257949,169.35,169.27,87.7]
[1754387340548,6.28823229,169.28,169.27,87.7]
[1754387340760,6.28823229,169.29,169.27,88.36]
[1754387340939,6.28823229,169.29,169.28,0.66]
[1754387341621,6.28823229,169.29,169.27,87.7]
[1754387341826,5.90643085,169.31,169.27,87.7]
[1754387342024,6.28823229,169.29,169.27,88.36]
[1754387342636,6.28823229,169.29,169.28,0.66]
[1754387343347,5.90643085,169.31,169.28,0.66]
[1754387343742,6.28823229,169.29,169.28,0.66]
[1754387343937,6.57608331,169.32,169.28,0.66]
[1754387344138,6.28823229,169.29,169.27,87.7]
[1754387344334,6.28823229,169.28,169.27,129.38]
[1754387344650,0.67,169.31,169.27,129.38]
[1754387344827,6.28823229,169.28,169.27,129.38]
[1754387345152,6.28823229,169.28,169.27,130.04]
[1754387345523,6.57527931,169.34,169.27,135.94770037]
[1754387345723,6.28823229,169.31,169.28,0.66]
[1754387346021,6.28823229,169.31,169.28,87.5]
[1754387346022,6.28823229,169.29,169.28,87.5]
[1754387346321,15.10621557,169.28,169.25,0.06]
[1754387346519,6.28823229,169.26,169.25,0.06]
[1754387346923,26.0,169.23,169.21,0.06]
[1754387347123,32.28823229,169.23,169.21,0.06]
[1754387347654,38.86735005,169.23,169.21,0.06]
[1754387349332,6.95823229,169.22,169.21,0.06]
[1754387349733,12.86769925,169.22,169.21,0.06]
[1754387350131,27.97391482,169.22,169.21,0.06]
[1754387350334,12.86769925,169.22,169.21,0.06]
[1754387353345,19.15593154,169.22,169.2,0.06]
[1754387353537,28.35268015,169.21,169.2,0.06]
[1754387354233,34.26249635,169.21,169.2,0.06]
[1754387354642,51.40453086,169.21,169.12,37.665]
[1754387354957,6.28823229,169.14,169.12,43.57793693]
[1754387355128,6.28823229,169.14,169.12,37.665]
[1754387355644,6.28823229,169.13,169.12,37.665]
[1754387355938,6.28823229,169.13,169.1,6.11361089]
[1754387356137,6.28823229,169.12,169.1,0.2]
[1754387356750,6.28823229,169.12,169.1,0.86]
[1754387357549,6.28823229,169.12,169.1,6.1136435]
[1754387357735,5.91164184,169.16,169.11,0.66]
[1754387358055,6.28823229,169.13,169.11,0.66]
[1754387358355,6.28823229,169.14,169.11,6.57330013]
[1754387358539,6.28823229,169.14,169.12,0.66]
[1754387359357,6.28823229,169.14,169.1,6.77353824]
[1754387359536,6.28823229,169.13,169.1,6.77353824]
[1754387360152,6.28823229,169.13,169.11,0.66]
[1754387360326,6.28823229,169.14,169.11,6.57314255]
[1754387361037,6.28823229,169.13,169.11,6.57314255]
[1754387361229,6.28823229,169.14,169.11,6.57314255]
[1754387361635,6.95823229,169.14,169.1,6.11358659]
[1754387361840,6.95823229,169.14,169.1,6.77358659]
[1754387362041,6.28823229,169.14,169.11,0.66]
[1754387362826,6.28823229,169.14,169.11,6.57318426]
[1754387363856,0.67,169.16,169.11,5.91318426]
[1754387364054,6.31823229,169.16,169.12,0.66]
[1754387364260,0.03,169.16,169.13,0.66]
[1754387364435,0.03,169.16,169.14,0.66]
[1754387364876,0.03,169.16,169.15,5.9119125]
[1754387365058,0.03,169.16,169.13,42.4]
[1754387365258,6.31823229,169.16,169.13,48.31257215]
[1754387366643,6.31823229,169.16,169.13,41.74]
[1754387366843,6.28823229,169.15,169.13,41.74]
[1754387367352,6.95823229,169.14,169.13,41.74]
[1754387367756,0.67,169.14,169.13,41.74]
[1754387368046,6.95823229,169.14,169.1,0.2]
[1754387368247,6.28823229,169.11,169.1,0.2]
[1754387368881,7.00823229,169.11,169.1,0.2]
[1754387369183,12.92154315,169.11,169.1,0.2]
[1754387370650,7.00823229,169.11,169.1,0.2]
[1754387371170,5.9127164,169.13,169.1,0.2]
[1754387371476,6.28823229,169.11,169.1,0.2]
[1754387376991,7.00823229,169.11,169.1,0.2]
[1754387377970,12.92154315,169.11,169.1,0.2]
[1754387378472,28.02775872,169.11,169.1,0.2]
[1754387378790,28.02775872,169.11,169.08,0.06]
[1754387378791,26.0,169.09,169.08,0.06]
[1754387379096,47.39444786,169.09,169.08,0.06]
[1754387379399,6.28823229,169.09,169.08,0.06]
[1754387379764,0.72,169.11,169.08,0.06]
[1754387379958,6.28823229,169.11,169.08,0.76]
[1754387380173,0.03,169.12,169.08,0.76]
[1754387380373,6.31823229,169.12,169.08,0.76]
[1754387380962,12.23132152,169.12,169.08,0.76]
[1754387381162,6.31823229,169.12,169.08,0.76]